Cogmind - Beta 16.1 @@@ ROGUE MODE // 2026.03.02 @ 00:02:15 // Winter2019/RPGLIKE Player: badjay Result: Destroyed by Y-45 Defender with Heavy Assault Rifle Performance ------------- Evolutions (1) 500 Regions Visited (3) 600 Robots Destroyed (47) 235 Value Destroyed (1071) 1071 Prototype IDs (8) 160 Alien Tech Used (0) 0 Bonus (40) 40 TOTAL SCORE: 2606 Bonus ------- High Alert Combat Kills 40 Cogmind --------- Core Integrity 0/600 Matter 300/300 Energy 125/125 System Corruption 0% Temperature Cool (9) Movement Flying (29) Location -9/Materials Parts ------- > --- POWER (1) -------- Light Ion Engine > --- PROPULSION (4) --- VTOL Module Improved Flight Unit Improved Flight Unit Improved Flight Unit > --- UTILITY (1) ------ Structural Scanner > --- WEAPON (3) ------- Mace Flail Flail > --- INVENTORY (1) ---- Flight Unit Peak State ------------ > --- POWER ------------ Light Ion Engine > --- PROPULSION ------- VTOL Module Improved Flight Unit Improved Flight Unit Improved Flight Unit > --- UTILITY ---------- Structural Scanner > --- WEAPON ----------- Mace Flail Flail > --- INVENTORY -------- Flight Unit [Rating: 19] Favorites ----------- Power Light Ion Engine Engine Light Ion Engine Propulsion Flight Unit Flight Unit Flight Unit Utility Structural Scanner Device Structural Scanner Weapon Flail Impact Weapon Flail Build | -11 -10 -10 -9 ------- Run | Yrd Mat Min Mat Slots Evolved 5 | . 1 2 2 Power . | . . . . Propulsion 3 | . . 1 2 Utility . | . . . . Weapon 2 | . 1 1 . Parts Attached 14 | . 5 2 7 Power 2 | . 1 . 1 Engine 2 | . 1 . 1 Core . | . . . . Reactor . | . . . . Propulsion 7 | . 1 1 5 Treads . | . . . . Leg . | . . . . Wheel . | . . . . Hover . | . . . . Flight 7 | . 1 1 5 Utility 1 | . 1 . . Device 1 | . 1 . . Storage . | . . . . Processor . | . . . . Hackware . | . . . . Protection . | . . . . Artifact . | . . . . Weapon 4 | . 2 1 1 Energy Gun . | . . . . Energy Cannon . | . . . . Ballistic Gun . | . . . . Ballistic Cannon . | . . . . Launcher . | . . . . Special Weapon . | . . . . Impact Weapon 4 | . 2 1 1 Slashing Weapon . | . . . . Piercing Weapon . | . . . . Special Melee Weapon . | . . . . Unidentified Prototypes 1 | . . . 1 Parts Lost . | . . . . Power . | . . . . Propulsion . | . . . . Utility . | . . . . Weapon . | . . . . Highest Loss Streak . | . . . . To Critical Strikes . | . . . . Average Backups . | . . . . Power . | . . . . Propulsion . | . . . . Utility . | . . . . Weapon . | . . . . Tool/Special . | . . . . Unused Backups 1 | . . . 1 Power . | . . . . Propulsion 1 | . . . 1 Utility . | . . . . Weapon . | . . . . Tool/Special . | . . . . Average Slot Usage (%) 88 | . 75 100 98 Engine 14 | . 17 14 11 Flight 26 | . 17 27 37 Device 9 | . 4 14 11 Impact Weapon 37 | . 36 41 36 Peak Build Rating 19 | . 7 10 19 Average Rating 9 | . 5 9 15 On Entrance 4 | . . 7 10 Avg Prop Armor Cover (%) 5 | . . . 5 Naked Turns 45 | . 45 . . Heaviest Build 10 | . 8 10 10 Greatest Support 25 | 3 9 13 25 Greatest Overweight (x) . | . . . . Average Overweight (x) . | . . . . Largest Inventory Capacity 1 | . 1 1 1 Average Capacity . | . . 1 1 Most Carried 1 | . 1 1 1 Average Carried . | . . . . Final Capacity 1 | . 1 1 1 Final Carried 1 | . 1 1 1 Class Distribution -------------------- 77% | Gladiator 11% | Scavenger-Gladiator 4% | Mutant 4% | Scientist-Sprinter Dominant Class ---------------- Gladiator | -10/Materials Gladiator | -10/Mines Gladiator | -9/Materials Resources | -11 -10 -10 -9 ----------- Run | Yrd Mat Min Mat Matter Collected 395 | 172 85 38 100 Remotely . | . . . . Salvage Created 1169 | . 233 57 879 Parts 48 | . 12 2 34 Haulers Intercepted 6 | . 2 . 4 Recyclers Shooed . | . . . . Parts Field Recycled . | . . . . Retrieved Matter . | . . . . Parts Self-Destructed . | . . . . Prevented . | . . . . Parts Restored . | . . . . Kills | -11 -10 -10 -9 ------- Run | Yrd Mat Min Mat Combat Hostiles Destroyed 37 | . 8 5 24 Melee 18 | . 6 2 10 Classes Destroyed 7 | . 5 . 2 Hauler 6 | . 2 . 4 Operator 1 | . 1 . . Watcher 3 | . 2 . 1 Swarmer 15 | . 3 3 9 Grunt 18 | . 5 2 11 Brawler 1 | . . . 1 Sentry 3 | . . . 3 Best Kill Streak 7 | . 4 3 7 Combat Bots Only 7 | . 3 3 7 Max Kills in Single Turn 1 | . 1 1 1 Gunslinging . | . . . . Exploded . | . . . . Melee 1 | . 1 1 1 Uniques/NPCs Destroyed . | . . . . Combat | -11 -10 -10 -9 -------- Run | Yrd Mat Min Mat Hostile Shots Fired 229 | . 67 15 147 Missed 85 | . 22 8 55 Hits 144 | . 45 7 92 Projectile 144 | . 45 7 92 Critical Strikes 1 | . . . 1 Damage Taken 1440 | . 410 68 962 Core 1237 | . 388 58 791 Absorbed by Shields . | . . . . Redirected to Core 645 | . 71 33 541 Core Remaining (%) 98 | 100 . 97 . Volleys Fired . | . . . . Largest . | . . . . Hottest . | . . . . Shots Fired . | . . . . Gun . | . . . . Cannon . | . . . . Launcher . | . . . . Special . | . . . . Kinetic . | . . . . Thermal . | . . . . Explosive . | . . . . Electromagnetic . | . . . . Robot Hit Streak . | . . . . Robot Miss Streak . | . . . . Penetration Max . | . . . . Secondary Targets . | . . . . Shots Hit Robots 107 | . 24 11 72 Core Hits 21 | . 8 2 11 Critical Kills 4 | . 2 . 2 Critical Parts Destroyed 13 | . 3 2 8 Critical Strikes 17 | . 5 2 10 Smash 17 | . 5 2 10 Melee Attacks 137 | . 33 11 93 Impact 137 | . 33 11 93 Slashing . | . . . . Piercing . | . . . . Sneak Attacks 10 | . 3 1 6 Combat Hostiles 1 | . . 1 . Follow-up Attacks 25 | . 4 3 18 Damage Inflicted 4037 | . 983 461 2593 Guns . | . . . . Cannons . | . . . . Explosions . | . . . . Melee 4026 | . 972 461 2593 Ramming 11 | . 11 . . Kinetic . | . . . . Thermal . | . . . . Explosive . | . . . . Electromagnetic . | . . . . Impact 4026 | . 972 461 2593 Slashing . | . . . . Piercing . | . . . . Highest Corruption 4 | . 4 4 . Average Corruption 3 | . 3 4 . Corruption Purged . | . . . . Corruption Blocked . | . . . . Effects 15 | . 11 4 . Message Errors 4 | . 3 1 . Matter Fused 4 | . 1 3 . Heat Flow Errors 1 | . 1 . . Energy Discharges 1 | . 1 . . Parts Rejected 1 | . 1 . . Parts Fused 1 | . 1 . . Data Loss (minor) 1 | . 1 . . Data Loss (major) 1 | . 1 . . Alerts 1 | . 1 . . Overload Shots . | . . . . Overflow Damage 823 | . 188 84 551 Projectiles . | . . . . Explosions . | . . . . Melee 823 | . 188 84 551 Knockbacks 12 | . 6 . 6 Impact 12 | . 6 . 6 Kinetic . | . . . . Secondary . | . . . . Self-Inflicted Damage 5 | . 5 . . Shots . | . . . . Rammed 3 | . 3 . . Targets Rammed 3 | . 3 . . Kicked . | . . . . Crushed . | . . . . Highest Temperature 224 | . 224 . 15 Average Temperature 88 | . 118 . 6 Received Heat Transfer 318 | . 51 . 267 Effects 2 | . 2 . . Energy Bleed 2 | . 2 . . Siege Activations . | . . . . Martial Activations . | . . . . Shielding Activations . | . . . . Robots Disrupted . | . . . . Combat Hostiles . | . . . . Robots Corrupted 21 | . 2 3 16 Combat Hostiles 19 | . 2 3 14 Parts Fried 23 | . 9 3 11 Impact Corruptions 48 | . 9 6 33 Robots Melted . | . . . . Combat Hostiles . | . . . . Parts Melted . | . . . . Heat Transferred . | . . . . Parts Sabotaged . | . . . . Parts Stolen . | . . . . Parts Stripped . | . . . . Power Chain Reactions . | . . . . Alert | -11 -10 -10 -9 ------- Run | Yrd Mat Min Mat Maximum Alert Level 2 | . . . 2 Low Security (%) 85 | 100 100 100 62 Level 1 4 | . . . 10 Level 2 10 | . . . 26 Level 3 . | . . . . Level 4 . | . . . . Level 5 . | . . . . High Security . | . . . . Max Security . | . . . . Peak Influence 569 | . 125 111 569 Initial 14 | . . 14 7 Average 122 | . 72 57 213 Influence Increases 1190 | . 282 127 781 Destroy 0b10 Robot/C 740 | . 160 100 480 Destroy 0b10 Robot/NC 50 | . 25 . 25 Destroy Leader 158 | . 38 20 100 Allied During Kill 7 | . . 7 . Successful Hack 54 | . 29 . 25 Disable Machine 15 | . . . 15 Destroy Structure 1 | . . . 1 Partial Spotted 30 | . . . 30 Lose Combat Pursuer 135 | . 30 . 105 Influence Decreases 631 | . 244 144 243 Entered New Map 38 | . . 24 14 Time Decay 563 | . 244 100 219 Lost Ally 30 | . . 20 10 Squads Dispatched 1 | . . . 1 Investigation . | . . . . Extermination . | . . . . Reinforcement 1 | . . . 1 Assault . | . . . . Garrison . | . . . . Intercept . | . . . . Searches Triggered . | . . . . Construction Impeded . | . . . . Haulers Reinforced . | . . . . Active Scanning Responses . | . . . . Cargo Convoy Interrupts . | . . . . Stealth | -11 -10 -10 -9 --------- Run | Yrd Mat Min Mat Distress Signals 5 | . . . 5 Communications Jammed . | . . . . Distress Signals . | . . . . Times Spotted 82 | . 15 26 41 Peak Tracking Total 19 | . 4 19 10 Tactical Retreats 7 | . 2 1 4 Traps | -11 -10 -10 -9 ------- Run | Yrd Mat Min Mat Traps Triggered 2 | . 2 . . Indirectly . | . . . . Trap Hack Attempts . | . . . . Triggered . | . . . . Disarmed . | . . . . Reprogrammed . | . . . . Reused . | . . . . Traps Extracted . | . . . . Installed . | . . . . Triggered . | . . . . Machines | -11 -10 -10 -9 ---------- Run | Yrd Mat Min Mat Machines Disabled 1 | . . . 1 Max in Single Turn 1 | . . . 1 Machines Repaired . | . . . . Machines Dismantled . | . . . . Machines Sabotaged . | . . . . Overloaded Fab Kills . | . . . . Hacking | -11 -10 -10 -9 --------- Run | Yrd Mat Min Mat Machines Accessed 18 | . 8 . 10 Terminals 16 | . 8 . 8 Fabricators . | . . . . Repair Stations 1 | . . . 1 Recycling Units . | . . . . Scanalyzers 1 | . . . 1 Garrison Access . | . . . . Total Hacks 68 | . 24 . 44 Successful 45 | . 14 . 31 Failed 23 | . 10 . 13 Catastrophic 2 | . 1 . 1 Database Lockouts . | . . . . Manual 50 | . 22 . 28 Terminals 62 | . 24 . 38 Fabricators . | . . . . Repair Stations 2 | . . . 2 Recycling Units . | . . . . Scanalyzers 4 | . . . 4 Garrison Access . | . . . . Terminal Hacks 20 | . 6 . 14 Prototype ID Bank 6 | . 2 . 4 Level Access Points 2 | . 1 . 1 Branch Access Points 2 | . 1 . 1 Terminal Index 1 | . . . 1 Scanalyzer Index 1 | . . . 1 Alert Level 2 | . 1 . 1 Hauler Manifests 2 | . . . 2 Registered Components 2 | . 1 . 1 Zone Layout 2 | . . . 2 Fabricator Hacks . | . . . . Repair Station Hacks 2 | . . . 2 Scan Component 1 | . . . 1 Repair 1 | . . . 1 Recycling Unit Hacks . | . . . . Scanalyzer 4 | . . . 4 Retrieve Study 4 | . . . 4 Garrison Access Hacks . | . . . . Unauthorized Hacks 19 | . 8 . 11 Terminals 19 | . 8 . 11 Track 2 | . . . 2 Assimilate 1 | . . . 1 Botnet 6 | . 3 . 3 Skim 10 | . 5 . 5 Fabricators . | . . . . Repair Stations . | . . . . Recycling Units . | . . . . Scanalyzers . | . . . . Garrison Access . | . . . . Data Cores Recovered 1 | . 1 . . Used 1 | . 1 . . Hacking Detections 13 | . 8 . 5 Full Trace Events . | . . . . Feedback Events . | . . . . Feedback Blocked . | . . . . Robot Schematics Acquired . | . . . . Robots Built . | . . . . Authchips . | . . . . Time . | . . . . Total Robot Build Rating . | . . . . Part Schematics Acquired . | . . . . Parts Built . | . . . . Authchips . | . . . . Time . | . . . . Total Part Build Rating . | . . . . Part Studies Acquired 4 | . . . 4 Parts Repaired 1 | . . . 1 Time 36 | . . . 36 Parts Recycled . | . . . . Recycled Matter . | . . . . Retrieved Matter . | . . . . Retrieved Components . | . . . . Parts Scanalyzed . | . . . . Part Schematics Acquired . | . . . . Parts Damaged . | . . . . Bothacking | -11 -10 -10 -9 ------------ Run | Yrd Mat Min Mat Used RIF Installer . | . . . . Robots Hacked . | . . . . Non-combat . | . . . . Combat . | . . . . Robot Hacks Applied . | . . . . Relay Couplers Released . | . . . . Fabnet Peak Effective % . | . . . . Robots Rewired . | . . . . Allies Hacked . | . . . . Hacks Repelled . | . . . . Allies | -11 -10 -10 -9 -------- Run | Yrd Mat Min Mat Total Allies 2 | . . 1 1 Largest Group 1 | . . 1 1 Highest-Rated Group 31 | . . 31 10 Highest-Rated Ally 31 | . . 31 10 Total Orders . | . . . . Ally Attacks 4 | . . 4 . Total Damage 63 | . . 63 . Kills 1 | . . 1 . Allies Corrupted . | . . . . Allies Melted . | . . . . Intel | -11 -10 -10 -9 ------- Run | Yrd Mat Min Mat Active Infowar (turns) 817 | . 130 213 474 Structural 817 | . 130 213 474 Robot Analysis Total . | . . . . Derelict Logs Recovered 2 | . . 2 . Drone Launches . | . . . . Drone Recoveries . | . . . . Exploration | -11 -10 -10 -9 ------------- Run | Yrd Mat Min Mat Turns Passed 1246 | 12 547 213 474 Spaces Moved 1847 | 24 686 465 672 Core 120 | 24 96 . . Treads . | . . . . Legs . | . . . . Wheels . | . . . . Hover . | . . . . Flight 1727 | . 590 465 672 Fastest Speed 29 | 50 40 37 29 Average Speed 37 | 50 41 37 33 Slowest Speed 50 | 50 50 40 37 Overloaded Moves . | . . . . Propulsion Burnouts . | . . . . Robots Hopped 4 | . 2 1 1 Potential Cave-ins . | . . . . Cave-ins Triggered . | . . . . Exploration Rate (%) 61 | 3 92 94 55 Regions Visited 3 Branch Regions 1 Pre-discovered Areas 4 | . 1 3 . Known Exits Taken 2 | . 1 1 . Unknown Exits Taken 1 | 1 . . . Scrap Searched 1 | . . 1 . Spaces Dug 1 | . . . 1 Terrain Destroyed 1 | . . . 1 Melee 1 | . . . 1 Projectile . | . . . . AOE . | . . . . Terrain Rammed . | . . . . Walls Destroyed . | . . . . Machines Disabled . | . . . . Actions | -11 -10 -10 -9 --------- Run | Yrd Mat Min Mat Total 2219 | 23 901 490 805 Wait 209 | . 161 10 38 Move 1836 | 23 681 462 670 Hop 4 | . 2 1 1 Pick Up 4 | . 1 1 2 Fast Attach 12 | . 6 1 5 Attach 2 | . . 1 1 Detach . | . . . . Swap 4 | . . . 4 Drop 7 | . . . 7 Fire . | . . . . Melee 102 | . 27 8 67 Ram 3 | . 3 . . Kick . | . . . . Crush . | . . . . Escape Stasis . | . . . . Rewire . | . . . . Trap . | . . . . Miscellaneous 36 | . 20 6 10 Route ------- -11/Scrapyard -10/Materials (discovered 4 exits: *Mat x3 / *Min) -10/Mines (discovered 2 exits: *Mat x2) -9/Materials (discovered 5 exits: *Mat x3 / *Min / *Sto) History --------- Turn | Location | Event 8 | -11/Scrapyard | Discovered new exit (range 12) 13 | -11/Scrapyard | Entered Materials 58 | -10/Materials | Upgraded with Weapon slot (x1) 79 | -10/Materials | Core integrity fell below 50% 237 | -10/Materials | Discovered new exit (range 9) 311 | -10/Materials | Discovered new exit (range 8) 315 | -10/Materials | Identified exit to Mines 364 | -10/Materials | Learned location of Recycling (-9) 364 | -10/Materials | Build established: Gladiator 405 | -10/Materials | Discovered new exit (range 14) 411 | -10/Materials | Identified exit to Materials 472 | -10/Materials | Learned 2 Mines zone layouts 490 | -10/Materials | Learned location of 1 exit from Recycling 555 | -10/Materials | Learned Recycling recycling unit intel 560 | -10/Materials | Entered Mines 562 | -10/Mines | Reached level 2 567 | -10/Mines | Escorted by a lone wolf Derelict 569 | -10/Mines | Upgraded with Propulsion slot (x1) 571 | -10/Mines | Upgraded with Weapon slot (x1) 594 | -10/Mines | Found a hidden stash of uninstalled traps 604 | -10/Mines | Learned location of Storage (-9) 612 | -10/Mines | Learned location of Mines (-9) 687 | -10/Mines | Received a Rocket Launcher from a helpful Derelict 698 | -10/Mines | Assembled infested the area 703 | -10/Mines | Assisted by a Guerilla fighting off Assembled 726 | -10/Mines | Learned location of Zion (-7) 773 | -10/Mines | Entered Materials 774 | -9/Materials | Identified exit to Mines 775 | -9/Materials | Reached level 3 776 | -9/Materials | Upgraded with Propulsion slot (x1) 946 | -9/Materials | Repaired Broken Flight Unit 975 | -9/Materials | Reached level 4 1040 | -9/Materials | Identified exit to Storage 1050 | -9/Materials | Discovered new exit (range 10) 1113 | -9/Materials | Core integrity fell below 50% 1143 | -9/Materials | Identified exit to Materials 1150 | -9/Materials | Destroyed 7 combat bots 1151 | -9/Materials | Upgraded with Propulsion slot (x1) 1218 | -9/Materials | Reached level 5 1228 | -9/Materials | Core integrity fell below 20% 1247 | -9/Materials | Destroyed by Y-45 Defender with Heavy Assault Rifle Last Messages --------------- (Smash). 01228_ Destroyed Imp. Ion Engine. 01228_ Y-45 Defender system corrupted by crushing effect. 01228_ Flail+ follow-up attack on Y-45 Defender. 01229_ Y-45 Defender system terminally corrupted. 01232_ Destroyed Flight Unit. 01232_ S-10 Pest system corrupted by crushing effect. 01232_ Flail+ follow-up attack on S-10 Pest. 01232_ Destroyed Flight Unit. 01232_ S-10 Pest system corrupted by crushing effect. 01233_ S-10 Pest system terminally corrupted. 01233_ Lgt. Assault Rifle fried. 01235_ Y-45 Defender destroyed. 01239_ O-16 Technician accesses terminal... 01239_ O-16 Technician IFF database reprogrammed. Map ----- +----------------------------------------------------+ | # # ????????????????????????????????????? | | # # ????????????????????????????????????? | | # # ????????????????????????????????????? | | # # ????????????????????????????????????? | | # # ????????????????????????????????????? | | # ##????????????????????????????????????? | | # ##????????????????????????????????????? | | # ##????????????????????????????????????? | | ## ##????????????????????????????????????? | | ########??????????????????????????????? | | %! ####### #?# " + =????????????? | | # # #?# # ?????????????? | | # "" # #?# # ?????????????? | | # ""S # #?### ### ?????????????? | | # "" # #???# ### ?????????????? | | "T" # # #???# ####+##?????????????? | | """ # # #??## ##?# #??????????????? | | + # #?### #### #??????????????? | | # # #?### #### ##?????????????? | | Y"# ## """ # #?## ?????????????? | | ""# ## """ # #?## ???????????? | | ###+## """ # #?## #########???????????? | | # ###+###### # =![ ###??????????? | | ####### ##### # =!%[###??????????? | | """ ####### # %=%!= ##??????????? | | """ ##??### T [#Y@ ###??????????? | | """ ##???## #####*%+% "T" ###??????????? | | ##???### ######%[#% ##???????????? | | ############# ######= #########???????????? | | """"" """"" # ##?## ########???????????? | | """"" """"" # ##?## ?????????????? | | """"" """"" # ##?## > ?????????????? | | # ##?## ##### ?????????????? | | # ##?#########?# ?????????????? | | # ##?########?## ?????????????? | | ############# ##??????????# ?????????????? | | #???## ##??????????# ?????????????? | | """ ##### ############ ?????????????? | | """ / ?????????????? | | """ ##### #########?????????????? | | #???# ######?????????????????????? | | ???????????????????????????????????????????? | | ???????????????????????????????????????????? | | ???????????????????????????????????????????? | | ???????????????????????????????????????????? | | ???????????????????????????????????????????? | | ???????????????????????????????????????????? | | ???????????????????????????????????????????? | | ???????????????????????????????????????????? | | ???????????????????????????????????????????? | +----------------------------------------------------+ Best States ------------- Heat Dissipation 25 Energy Generation 11 Energy Capacity 125 Matter Stores 300 Matter Capacity 300 Sight Range 16 Terrain Scan Density 10 Evasion (%) 64 Offensive Hacking 10 Defensive Hacking 10 Item Schematics ----------------- None Robot Schematics ------------------ None Fabricated ------------ Nothing Repaired ---------- Flight Unit | 99% | -9/Materials | Broken Studied --------- Mace | -9/Materials | Hacked VTOL Module | -9/Materials | Hacked Lgt. Ion Engine | -9/Materials | Hacked Flail | -9/Materials | Hacked Alien Tech Used ----------------- None Achievements -------------- None Challenges ------------ None RPGLIKE | -11 -10 -10 -9 --------- Run | Yrd Mat Min Mat Levels Raised 4 | . . 1 3 XP Earned 9599 | 3000 1015 1100 4484 XP Spent 7350 | . 2850 1300 3200 Upgrades 16 | . 8 2 6 Propulsion Slot 3 | . . 1 2 Weapon Slot 2 | . 1 1 . Mass Support 1 | . 1 . . Inventory Capacity 1 | . 1 . . Melee Accuracy 5 | . 5 . . Hack Attack % 2 | . . . 2 Hack Defense % 2 | . . . 2 Protomatter Created 385 | . 136 64 185 Integrity Restored 673 | . 405 64 204 Core 636 | . 388 44 204 Parts 37 | . 17 20 . Protomatter Decayed 66 | . . 66 . Game ------ Seed SchematicGuidanceNanovents Manual? 0 Play Time 00:23:21 Cumulative 217.6 hours Start 2026.03.01 @ 23:42:37 End 2026.03.02 @ 00:02:15 Sessions 1 Manual Loads 0 Difficulty Rogue Special Mode Winter2019/RPGLIKE Game No. 215 Rogue 215 Adventurer 0 Explorer 0 Win Type - Total 15 Types 11/0/1/1/0/0/1/0/0/1 Lore% 70 Gallery% 58 Achievement% 54 Wizard Run 0 Options --------- Layout 2 ASCII 0 Keyboard 0 Movement Numpad Keybinds 0 Fullscreen 1 Font 24/Smallcaps Map View 50x44 Zoom Use 0% Tactical HUD 1 Map Filters NONE Filters NONE Steam 1 RUN: 4f3e7ed1-f376-41a3-9a6b-75d1e2e3012c